fUST/lending_fUST_20250201
["ID","MTS","AMOUNT","RATE_DAILY","PERIOD"]
[351145469,1738351636566,-500.0,0.00016994,2]
[351145470,1738351636588,-500.0,0.00016994,2]
[351145471,1738351636613,-500.0,0.00016994,2]
[351145472,1738351636638,-500.0,0.00016995,2]
[351145473,1738351636659,-500.0,0.00016995,2]
[351145474,1738351636682,-500.0,0.00016995,2]
[351145475,1738351636704,-500.0,0.00016995,2]
[351145476,1738351636725,-500.0,0.00016995,2]
[351145477,1738351636745,-500.0,0.00016995,2]
[351145478,1738351636766,-500.0,0.00016995,2]
[351145479,1738351636787,-500.0,0.00016995,2]
[351145480,1738351636807,-500.0,0.00016995,2]
[351145481,1738351636828,-500.0,0.00016995,2]
[351145482,1738351636848,-500.0,0.00016995,2]
[351145483,1738351636869,-500.0,0.00016995,2]
[351145484,1738351636892,-500.0,0.00016995,2]
[351145485,1738351636912,-500.0,0.00016995,2]
[351145486,1738351636935,-500.0,0.00016995,2]
[351145487,1738351636969,-600.65,0.00016995,2]
[351145488,1738351636992,-500.0,0.00016995,2]
[351145489,1738351637015,-500.0,0.00016995,2]
[351145490,1738351637037,-500.0,0.00016995,2]
[351145491,1738351637059,-500.0,0.00016995,2]
[351145492,1738351637090,-500.0,0.00016995,2]
[351145493,1738351637118,-500.0,0.00016995,2]
[351145494,1738351637141,-500.0,0.00016995,2]
[351145495,1738351637164,-500.0,0.00016995,2]
[351145496,1738351637185,-500.0,0.00016995,2]
[351145497,1738351637207,-500.0,0.00016995,2]
[351145498,1738351637230,-500.0,0.00016995,2]
[351145499,1738351637252,-500.0,0.00016995,2]
[351145500,1738351637273,-500.0,0.00016995,2]
[351145501,1738351637296,-500.0,0.00016995,2]
[351145502,1738351637318,-500.0,0.00016995,2]
[351145503,1738351637339,-500.0,0.00016995,2]
[351145504,1738351637361,-500.0,0.00016995,2]
[351145505,1738351637383,-500.0,0.00016995,2]
[351145506,1738351637404,-500.0,0.00016995,2]
[351145507,1738351637426,-506.45,0.00016995,2]
[351145508,1738351637456,-500.0,0.00016995,2]
[351145509,1738351637487,-500.0,0.00016995,2]
[351145510,1738351637510,-500.0,0.00016995,2]
[351145511,1738351637534,-500.0,0.00016995,2]
[351145512,1738351637558,-500.0,0.00016995,2]
[351145513,1738351637581,-500.0,0.00016995,2]
[351145514,1738351637603,-350.4246439,0.00016995,2]
[351145515,1738351637627,-500.0,0.00016995,2]
[351145516,1738351637652,-500.0,0.00016995,2]
[351145517,1738351637673,-500.0,0.00016995,2]
[351145518,1738351637695,-500.0,0.00016995,2]
[351145519,1738351637718,-529.18043124,0.00016995,2]
[351145520,1738351637741,-500.0,0.00016995,2]
[351145521,1738351637761,-449.2247267,0.00016995,2]
[351145522,1738351637782,-151.484205,0.00016995,2]
[351145523,1738351637803,-500.0,0.00016995,2]
[351145524,1738351637827,-500.91535342,0.00016995,2]
[351145525,1738351637847,-500.0,0.00016995,2]
[351145526,1738351637868,-403.094666,0.00016995,2]
[351145527,1738351637890,-501.4628618,0.00016995,2]
[351145528,1738351638060,-500.0,0.00016995,2]
[351145529,1738351638082,-510.19543902,0.00016995,2]
[351145530,1738351638104,-500.0,0.00016995,2]
[351145531,1738351638126,-500.0,0.00016995,2]
[351145532,1738351638149,-500.0,0.00016995,2]
[351145533,1738351638171,-545.73058514,0.00016995,2]
[351145534,1738351638192,-500.0,0.00016995,2]
[351145535,1738351638214,-500.0,0.00016995,2]
[351145536,1738351638236,-500.0,0.00016995,2]
[351145537,1738351638258,-500.0,0.00016995,2]
[351145538,1738351638280,-500.84668446,0.00016995,2]
[351145539,1738351638302,-500.0,0.00016995,2]
[351145540,1738351638328,-345.40859823,0.00016995,2]
[351145541,1738351638350,-500.0,0.00016995,2]
[351145542,1738351638373,-500.0,0.00016995,2]
[351145543,1738351638397,-501.25370385,0.00016995,2]
[351145544,1738351638420,-500.0,0.00016995,2]
[351145545,1738351638443,-501.2904104,0.00016995,2]
[351145546,1738351638467,-500.0,0.00016995,2]
[351145547,1738351638491,-500.0,0.00016995,2]
[351145548,1738351638514,-500.0,0.00016995,2]
[351145549,1738351638541,-500.0,0.00016996,2]
[351145550,1738351638563,-258.52629496,0.00016997,2]
[351145551,1738351638586,-500.0,0.00016997,2]
[351145552,1738351638612,-500.0,0.00016997,2]
[351145553,1738351638634,-500.0,0.00016997,2]
[351145554,1738351638656,-305.0461941,0.00016997,2]
[351145555,1738351638678,-500.0,0.00016997,2]
[351145556,1738351638703,-500.0,0.00016997,2]
[351145557,1738351638724,-529.56420561,0.00016997,2]
[351145558,1738351638746,-500.0,0.00016997,2]
[351145559,1738351638767,-500.78326687,0.00016997,2]
[351145560,1738351638789,-500.7448755,0.00016997,2]
[351145561,1738351638811,-500.0,0.00016997,2]
[351145562,1738351638832,-500.0,0.00016997,2]
[351145563,1738351638854,-500.0,0.00016997,2]
[351145564,1738351638876,-500.0,0.00016997,2]
[351145565,1738351638899,-520.51,0.00016997,2]
[351145566,1738351638921,-500.0,0.00016997,2]
[351145567,1738351638943,-500.0,0.00016997,2]
[351145568,1738351638964,-500.0,0.00016997,2]
[351145569,1738351638986,-363.4538601,0.00016997,2]
[351145570,1738351639007,-504.87,0.00016997,2]
[351145571,1738351639029,-500.0,0.00016997,2]
[351145572,1738351639051,-500.0,0.00016997,2]
[351145573,1738351639073,-500.0,0.00016997,2]
[351145574,1738351639094,-500.0,0.00016997,2]
[351145575,1738351639115,-500.0,0.00016997,2]
[351145576,1738351639137,-500.0,0.00016997,2]
[351145577,1738351639160,-500.0,0.00016997,2]
[351145578,1738351639182,-500.0,0.0001713,2]
[351145579,1738351639205,-506.67,0.0001713,2]
[351145580,1738351639226,-500.0,0.0001713,2]
[351145581,1738351639249,-500.0,0.00017131,2]
[351145582,1738351639273,-902.59,0.00017131,2]
[351145583,1738351639296,-500.0,0.00017131,2]
[351145584,1738351639318,-500.0,0.00017131,2]
[351145585,1738351639342,-249.12,0.00017131,2]
[351145586,1738351639367,-500.0,0.00017131,2]
[351145587,1738351639393,-500.0,0.00017131,2]
[351145588,1738351639416,-506.79103997,0.00017131,2]
[351145589,1738351639443,-618.9,0.00017131,2]
[351145590,1738351639464,-500.0,0.00017131,2]
[351145591,1738351639487,-369.41,0.00017131,2]
[351145592,1738351639510,-500.0,0.00017131,2]
[351145593,1738351639533,-500.0,0.00017131,2]
[351145594,1738351639555,-315.48,0.00017131,2]
[351145595,1738351639577,-258.14,0.00017131,2]
[351145596,1738351639608,-500.0,0.00017131,2]
[351145597,1738351639631,-500.0,0.00017131,2]
[351145598,1738351639653,-163.02,0.00017131,2]
[351145599,1738351639676,-168.69,0.00017131,2]
[351145600,1738351639701,-463.11,0.00017131,2]
[351145601,1738351639725,-662.02,0.00017131,2]
[351145602,1738351639747,-500.0,0.00017131,2]
[351145603,1738351639770,-500.0,0.00017131,2]
[351145604,1738351639794,-500.0,0.00017131,2]
[351145605,1738351639815,-161.74,0.00017131,2]
[351145606,1738351639837,-500.0,0.00017131,2]
[351145607,1738351639858,-500.0,0.00017131,2]
[351145608,1738351639881,-500.0,0.00017131,2]
[351145609,1738351639904,-1465.85,0.00017131,2]
[351145610,1738351639927,-500.0,0.00017131,2]
[351145611,1738351639950,-500.0,0.00017131,2]
[351145612,1738351639974,-500.0,0.00017131,2]
[351145613,1738351639996,-500.0,0.00017131,2]
[351145614,1738351640020,-500.0,0.00017131,2]
[351145615,1738351640046,-500.0,0.00017131,2]
[351145616,1738351640070,-500.0,0.00017131,2]
[351145617,1738351640092,-500.0,0.00017131,2]
[351145618,1738351640113,-500.0,0.00017132,2]
[351145619,1738351640144,-500.0,0.00017132,2]
[351145620,1738351640166,-500.0,0.00017132,2]
[351145621,1738351640188,-500.0,0.00017132,2]
[351145622,1738351640213,-500.0,0.00017132,2]
[351145623,1738351640238,-481.4323488,0.00017132,2]
[351145624,1738351641155,-189.54969432,0.00016894,2]
[351145625,1738351641178,-18.5676512,0.00017132,2]
[351145626,1738351641200,-500.0,0.00017132,2]
[351145627,1738351641223,-152.61,0.00017132,2]
[351145628,1738351641246,-500.0,0.00017132,2]
[351145629,1738351641268,-500.0,0.00017132,2]
[351145630,1738351641290,-500.0,0.00017132,2]
[351145631,1738351641311,-500.0,0.00017132,2]
[351145632,1738351641332,-500.0,0.00017132,2]
[351145633,1738351641355,-500.0,0.00017132,2]
[351145634,1738351641376,-500.0,0.00017132,2]
[351145635,1738351641403,-500.0,0.00017132,2]
[351145636,1738351641426,-500.0,0.00017132,2]
[351145637,1738351641450,-500.0,0.00017133,2]
[351145638,1738351641472,-500.0,0.00017134,2]
[351145639,1738351641494,-500.0,0.00017134,2]
[351145640,1738351641625,-500.0,0.00017134,2]
[351145641,1738351641648,-622.7841006,0.00017134,2]
[351145642,1738351641669,-500.0,0.00017143,2]
[351145643,1738351641690,-500.0,0.0001716,2]
[351145644,1738351641713,-500.0,0.0001716,2]
[351145645,1738351641733,-508.596524,0.0001716,2]
[351145646,1738351641754,-500.0,0.0001716,2]
[351145647,1738351641775,-500.0,0.0001716,2]
[351145648,1738351641796,-500.0,0.0001716,2]
[351145649,1738351641816,-500.0,0.00017232,2]
[351145650,1738351641838,-500.0,0.00017232,2]
[351145651,1738351641862,-500.0,0.00017267,2]
[351145652,1738351641890,-500.0,0.00017268,2]
[351145653,1738351641914,-902.59,0.00017268,2]
[351145654,1738351641937,-500.0,0.00017268,2]
[351145655,1738351641962,-500.0,0.00017268,2]
[351145656,1738351641989,-343.46,0.00017268,2]
[351145657,1738351642013,-500.0,0.00017268,2]
[351145658,1738351642037,-500.0,0.00017268,2]
[351145659,1738351642062,-500.0,0.00017268,2]
[351145660,1738351642086,-500.0,0.00017268,2]
[351145661,1738351642112,-662.02,0.00017268,2]
[351145662,1738351642140,-500.0,0.00017268,2]
[351145663,1738351642162,-268.11,0.00017268,2]
[351145664,1738351642185,-153.68,0.00017268,2]
[351145665,1738351642208,-500.0,0.00017268,2]
[351145666,1738351642232,-500.0,0.00017268,2]
[351145667,1738351642260,-1465.85,0.00017268,2]
[351145668,1738351642284,-500.0,0.00017268,2]
[351145669,1738351642307,-500.0,0.00017268,2]
[351145670,1738351642331,-500.0,0.00017268,2]
[351145671,1738351642353,-500.0,0.00017269,2]
[351145672,1738351642376,-297.06,0.00017269,2]
[351145673,1738351642404,-565.54,0.00017269,2]
[351145674,1738351642429,-309.63,0.00017269,2]
[351145675,1738351642454,-500.0,0.0001727,2]
[351145676,1738351642478,-303.53338021,0.00017404,2]
[351145677,1738351642504,-500.0,0.00017405,2]
[351145678,1738351642530,-902.59,0.00017405,2]
[351145679,1738351642553,-500.0,0.00017405,2]
[351145680,1738351642598,-639.11,0.00017405,2]
[351145681,1738351642624,-500.0,0.00017405,2]
[351145682,1738351642654,-425.13,0.00017405,2]
[351145683,1738351642677,-548.96,0.00017405,2]
[351145684,1738351642704,-500.0,0.00017405,2]
[351145685,1738351642729,-662.02,0.00017405,2]
[351145686,1738351642752,-500.0,0.00017405,2]
[351145687,1738351642773,-500.0,0.00017405,2]
[351145688,1738351642797,-500.0,0.00017405,2]
[351145689,1738351642820,-1465.85,0.00017405,2]
[351145690,1738351642841,-339.77,0.00017405,2]
[351145691,1738351642863,-407.2,0.00017405,2]
[351145692,1738351642888,-541.34,0.00017405,2]
[351145693,1738351642909,-500.0,0.00017406,2]
[351145694,1738351642933,-500.0,0.00017407,2]
[351145695,1738351642953,-633.84006734,0.0001741,2]
[351145696,1738351642976,-500.0,0.00017542,2]
[351145697,1738351642998,-902.59,0.00017542,2]
[351145698,1738351643020,-500.0,0.00017542,2]
[351145699,1738351643042,-394.26,0.00017542,2]
[351145700,1738351643063,-500.0,0.00017542,2]
[351145701,1738351643085,-662.02,0.00017542,2]
[351145702,1738351643109,-500.0,0.00017542,2]
[351145703,1738351643130,-329.26,0.00017542,2]
[351145704,1738351643154,-627.6,0.00017542,2]
[351145705,1738351643177,-1465.85,0.00017542,2]
[351145706,1738351643198,-266.58,0.00017543,2]
[351145707,1738351643221,-500.0,0.00017544,2]
[351145708,1738351643244,-248.44203023,0.00017678,2]
[351145709,1738351643267,-500.0,0.00017679,2]
[351145710,1738351643291,-902.59,0.00017679,2]
[351145711,1738351643312,-500.0,0.00017679,2]
[351145712,1738351643335,-500.0,0.00017679,2]
[351145713,1738351643358,-662.02,0.00017679,2]
[351145714,1738351643380,-347.3769984,0.00017679,2]
[351145715,1738351643405,-1465.85,0.00017679,2]
[351145716,1738351643429,-500.0,0.00017681,2]
[351145717,1738351643453,-500.0,0.00017816,2]
[351145718,1738351643477,-902.59,0.00017816,2]
[351145719,1738351643500,-500.0,0.00017816,2]
[351145720,1738351643525,-158.82,0.00017816,2]
[351145721,1738351643549,-662.02,0.00017816,2]
[351145722,1738351643571,-1465.85,0.00017816,2]
[351145723,1738351643594,-500.0,0.00017818,2]
[351145724,1738351643620,-203.58985823,0.000179,2]
[351145725,1738351643648,-500.0,0.00017953,2]
[351145726,1738351643674,-902.59,0.00017953,2]
[351145727,1738351643697,-500.0,0.00017953,2]
[351145728,1738351643720,-662.02,0.00017953,2]
[351145729,1738351643742,-1465.85,0.00017953,2]
[351145730,1738351643764,-500.0,0.00017955,2]
[351145731,1738351643788,-500.0,0.0001809,2]
[351145732,1738351643812,-902.59,0.0001809,2]
[351145733,1738351643834,-500.0,0.0001809,2]
[351145734,1738351643857,-662.02,0.0001809,2]
[351145735,1738351643879,-1465.85,0.0001809,2]
[351145736,1738351643905,-500.0,0.00018092,2]
[351145737,1738351643930,-500.0,0.00018227,2]
[351145738,1738351643954,-902.59,0.00018227,2]
[351145739,1738351643975,-500.0,0.00018227,2]
[351145740,1738351644001,-662.02,0.00018227,2]
[351145741,1738351644022,-1465.85,0.00018227,2]
[351145742,1738351644046,-500.0,0.00018229,2]
[351145743,1738351644066,-313.934,0.0001831,2]
[351145744,1738351644089,-500.0,0.00018364,2]
[351145745,1738351644112,-902.59,0.00018364,2]
[351145746,1738351644132,-500.0,0.00018364,2]
[351145747,1738351644158,-662.02,0.00018364,2]
[351145748,1738351644179,-1465.85,0.00018364,2]
[351145749,1738351644203,-500.0,0.00018366,2]
[351145750,1738351644223,-798.06,0.000184,2]
[351145751,1738351644245,-500.0,0.00018501,2]
[351145752,1738351644268,-902.59,0.00018501,2]
[351145753,1738351644289,-500.0,0.00018501,2]
[351145754,1738351644312,-662.02,0.00018501,2]
[351145755,1738351644334,-1465.85,0.00018501,2]
[351145756,1738351644357,-500.0,0.00018503,2]
[351145757,1738351644378,-500.0,0.00018548,2]
[351145758,1738351644401,-155.51,0.000186,2]
[351145759,1738351644423,-537.0,0.00018635,2]
[351145760,1738351644447,-2042.0,0.00018635,2]
[351145761,1738351644471,-171.66744224,0.00018638,2]
[351145811,1738351832562,-898.48,0.000165,2]
[351145812,1738351832616,-346.04443633,0.000165,2]
[351145813,1738351832627,-500.0,0.00016994,2]
[351145814,1738351832637,-500.0,0.00016994,2]
[351145815,1738351832646,-187.25556367,0.00016995,2]
[351145816,1738351832676,-312.74443633,0.00016995,2]
[351145817,1738351832686,-500.0,0.00016995,2]
[351145818,1738351832707,-187.25556367,0.00017131,2]
[351145819,1738351832719,-312.74443633,0.00017131,2]
[351145820,1738351832728,-500.0,0.00017131,2]
[351145821,1738351832738,-47.73795127,0.00017268,2]
[351146051,1738351840741,-452.26204873,0.00017268,2]
[351146052,1738351840754,-500.0,0.00017268,2]
[351146053,1738351840764,-500.0,0.00017405,2]
[351146054,1738351840774,-500.0,0.00017405,2]
[351146055,1738351840784,-500.0,0.00017542,2]
[351146057,1738351840793,-500.0,0.00017542,2]
[351146058,1738351840802,-500.0,0.00017679,2]
[351146060,1738351840813,-500.0,0.00017679,2]
[351146062,1738351840822,-500.0,0.00017816,2]
[351146063,1738351840831,-466.12,0.00017816,2]
[351146065,1738351840841,-167.633442,0.00017863,2]
[351146067,1738351840850,-500.0,0.00017953,2]
[351146069,1738351840859,-500.0,0.0001809,2]
[351146071,1738351840868,-500.0,0.00018227,2]
[351146073,1738351840878,-500.0,0.00018364,2]
[351146075,1738351840888,-718.26,0.000184,2]
[351146076,1738351840897,-500.0,0.00018501,2]
[351146078,1738351840906,-500.0,0.00018548,2]
[351146079,1738351840916,-662.02,0.00018638,2]
[351146080,1738351840926,-1465.85,0.00018638,2]
[351146081,1738351840935,-500.0,0.00018638,2]
[351146082,1738351840945,-500.0,0.0001864,2]
[351146083,1738351840954,-662.02,0.00018775,2]
[351146084,1738351840963,-1465.85,0.00018775,2]
[351146085,1738351840973,-500.0,0.00018775,2]
[351146086,1738351840983,-500.0,0.00018777,2]
[351146087,1738351840992,-190.95529985,0.000189,2]
[351146088,1738351841002,-662.02,0.00018912,2]
[351146089,1738351841012,-1465.85,0.00018912,2]
[351146090,1738351841163,-500.0,0.00018912,2]
[351146091,1738351841173,-185.45096563,0.00018914,2]
[351146092,1738351841183,-302.84859388,0.00019,2]
[351146093,1738351841193,-662.02,0.00019049,2]
[351146094,1738351841202,-1465.85,0.00019049,2]
[351146096,1738351841211,-500.0,0.00019049,2]
[351146097,1738351841221,-500.0,0.00019178,7]
[351146099,1738351841230,-162.518657,0.00019178,2]
[351146101,1738351841240,-662.02,0.00019186,2]
[351146103,1738351841250,-1465.85,0.00019186,2]
[351146105,1738351841260,-500.0,0.00019186,2]
[351146107,1738351841269,-662.02,0.00019323,2]
[351146109,1738351841278,-1465.85,0.00019323,2]
[351146110,1738351841288,-500.0,0.00019323,2]
[351146112,1738351841297,-662.02,0.0001946,2]
[351146113,1738351841307,-1465.85,0.0001946,2]
[351146114,1738351841317,-500.0,0.0001946,2]
[351146116,1738351841326,-154.383,0.0001947,2]
[351146117,1738351841335,-662.02,0.00019597,2]
[351146118,1738351841344,-1465.85,0.00019597,2]
[351146119,1738351841354,-500.0,0.00019597,2]
[351146120,1738351841363,-662.02,0.00019734,2]
[351146121,1738351841373,-1465.85,0.00019734,2]
[351146122,1738351841383,-500.0,0.00019734,2]
[351146123,1738351841393,-9278.90699356,0.00019804,2]
[351146124,1738351841403,-171.22182921,0.00019863,9]
[351146125,1738351841412,-662.02,0.00019871,2]
[351146126,1738351841422,-1465.85,0.00019871,2]
[351146127,1738351841431,-331.1,0.00019871,2]
[351146128,1738351841440,-2757.27076956,0.000199,2]
[351146129,1738351841450,-203.58985823,0.000199,2]
[351146130,1738351841459,-1245.72797839,0.00019989,8]
[351146131,1738351841468,-417.75853704,0.00019999,2]
[351146132,1738351841478,-208.57737969,0.00019999,2]
[351146133,1738351841487,-75256.12535534,0.0002,5]
[351146134,1738351841497,-2346.19873447,0.0002,5]
[351146135,1738351841507,-60233.388126,0.0002,15]
[351146164,1738351843550,-13143.56421217,0.0002,15]
[351146165,1738351843564,-5112.0,0.0002,15]
[351146166,1738351843576,-1044.0,0.0002,15]
[351146167,1738351843587,-2757.86399761,0.0002,15]
[351146168,1738351843599,-11664.25728591,0.0002,15]
[351146169,1738351843616,-649.37625109,0.0002,15]
[351146223,1738351846473,-165.85598253,0.00019497,2]
[351146224,1738351846483,-39494.04401747,0.0002,15]
[351146228,1738351847812,-16028.8073864,0.0002,15]
[351146229,1738352075805,216.948754,0.00013973,2]
[351146238,1738352829483,-640.15722,0.00016165,2]
[351146239,1738352829504,-386.1285697,0.00016268,2]
[351146240,1738352829526,-300.0,0.00016992,2]
[351146241,1738352829548,-500.0,0.00016993,2]
[351146242,1738352829570,-500.0,0.00016993,2]
[351146243,1738352829598,-500.0,0.00016993,2]
[351146244,1738352829620,-500.0,0.00016993,2]
[351146245,1738352829641,-500.0,0.00016993,2]
[351146246,1738352829664,-778.55,0.00016993,2]
[351146247,1738352829685,-500.0,0.00016993,2]
[351146248,1738352829706,-500.0,0.00016993,2]
[351146249,1738352829729,-500.0,0.00016993,2]
[351146250,1738352829750,-455.24642208,0.00016993,2]
[351146251,1738352829771,-500.0,0.00016993,2]
[351146252,1738352829793,-500.0,0.00016993,2]
[351146253,1738352829815,-500.0,0.00016993,2]
[351146254,1738352829837,-500.0,0.00016993,2]
[351146255,1738352829858,-500.0,0.00016993,2]
[351146256,1738352829880,-500.0,0.00016993,2]
[351146257,1738352829901,-500.0,0.00016993,2]
[351146258,1738352829923,-500.0,0.00016993,2]
[351146259,1738352829944,-500.0,0.00016994,2]
[351146260,1738352829965,-500.0,0.00016994,2]
[351146261,1738352829990,-500.0,0.00016994,2]
[351146262,1738352830011,-500.0,0.00016994,2]
[351146263,1738352830032,-500.0,0.00016994,2]
[351146264,1738352830055,-500.0,0.00016994,2]
[351146265,1738352830077,-500.0,0.00016994,2]
[351146266,1738352830099,-500.0,0.00016995,2]
[351146267,1738352830121,-500.0,0.00016995,2]
[351146268,1738352830141,-500.0,0.00016995,2]
[351146269,1738352830162,-500.0,0.00016995,2]
[351146270,1738352830183,-500.0,0.00016995,2]
[351146271,1738352830204,-500.0,0.00016995,2]
[351146272,1738352830225,-500.0,0.00016995,2]
[351146273,1738352830245,-500.0,0.00016995,2]
[351146274,1738352830266,-230.1248082,0.00017029,2]
[351146275,1738352830286,-500.0,0.00017128,2]
[351146276,1738352830308,-500.0,0.00017128,2]
[351146277,1738352830331,-500.0,0.00017128,2]
[351146278,1738352830353,-500.0,0.00017128,2]
[351146279,1738352830374,-500.0,0.00017128,2]
[351146280,1738352830396,-500.0,0.00017128,2]
[351146281,1738352830566,-634.84,0.00017128,2]
[351146282,1738352830589,-500.0,0.00017128,2]
[351146283,1738352830610,-500.0,0.00017129,2]
[351146284,1738352830632,-500.0,0.00017129,2]
[351146285,1738352830655,-500.0,0.00017129,2]
[351146286,1738352830677,-500.0,0.00017129,2]
[351146287,1738352830697,-232.51429619,0.00017129,2]
[351146288,1738352830718,-500.0,0.00017129,2]
[351146289,1738352830741,-500.0,0.00017129,2]
[351146290,1738352830769,-500.0,0.00017129,2]
[351146291,1738352830791,-500.0,0.00017129,2]
[351146292,1738352830812,-500.0,0.00017129,2]
[351146293,1738352830835,-500.0,0.00017129,2]
[351146294,1738352830858,-606.59,0.00017129,2]
[351146295,1738352830879,-599.39,0.00017129,2]
[351146296,1738352830901,-500.0,0.00017129,2]
[351146297,1738352830922,-500.0,0.00017129,2]
[351146298,1738352830944,-500.0,0.00017129,2]
[351146299,1738352830965,-500.0,0.00017129,2]
[351146300,1738352830991,-500.0,0.00017129,2]
[351146301,1738352831015,-500.0,0.00017129,2]
[351146302,1738352831037,-500.0,0.00017129,2]
[351146303,1738352831060,-500.0,0.00017129,2]
[351146304,1738352831081,-598.23,0.00017129,2]
[351146305,1738352831104,-500.0,0.0001713,2]
[351146306,1738352831126,-500.0,0.0001713,2]
[351146307,1738352831150,-778.55,0.0001713,2]
[351146308,1738352831174,-500.0,0.0001713,2]
[351146309,1738352831197,-500.0,0.0001713,2]
[351146310,1738352831219,-500.0,0.0001713,2]
[351146311,1738352831242,-500.0,0.0001713,2]
[351146312,1738352831264,-500.0,0.0001713,2]
[351146313,1738352831286,-500.0,0.0001713,2]
[351146314,1738352831307,-500.0,0.00017131,2]
[351146315,1738352831329,-500.0,0.00017131,2]
[351146316,1738352831350,-186.64959503,0.00017131,2]
[351146317,1738352831371,-500.0,0.00017265,2]
[351146318,1738352831394,-500.0,0.00017265,2]
[351146319,1738352831414,-500.0,0.00017265,2]
[351146320,1738352831434,-500.0,0.00017265,2]
[351146321,1738352831457,-500.0,0.00017265,2]
[351146322,1738352831482,-500.0,0.00017265,2]
[351146323,1738352831504,-500.0,0.00017266,2]
[351146324,1738352831526,-500.0,0.00017266,2]
[351146325,1738352831548,-500.0,0.00017266,2]
[351146326,1738352831570,-447.03,0.00017266,2]
[351146327,1738352831593,-500.0,0.00017266,2]
[351146328,1738352831614,-500.0,0.00017266,2]
[351146329,1738352831635,-620.04,0.00017266,2]
[351146330,1738352831656,-500.0,0.00017266,2]
[351146331,1738352831678,-500.0,0.00017266,2]
[351146332,1738352831699,-500.0,0.00017266,2]
[351146333,1738352831722,-500.0,0.00017266,2]
[351146334,1738352831744,-500.0,0.00017266,2]
[351146335,1738352831765,-443.61,0.00017266,2]
[351146336,1738352831788,-266.82,0.00017267,2]
[351146337,1738352831809,-778.55,0.00017267,2]
[351146338,1738352831831,-500.0,0.00017267,2]
[351146339,1738352831856,-500.0,0.00017267,2]
[351146340,1738352831879,-500.0,0.00017267,2]
[351146341,1738352831901,-500.0,0.00017267,2]
[351146342,1738352831922,-536.7,0.00017267,2]
[351146343,1738352831944,-500.0,0.00017268,2]
[351146344,1738352831965,-304.35852764,0.00017402,2]
[351146345,1738352831989,-500.0,0.00017402,2]
[351146346,1738352832010,-244.30747998,0.00017403,2]
[351146347,1738352832032,-500.0,0.00017403,2]
[351146348,1738352832056,-500.0,0.00017403,2]
[351146349,1738352832079,-500.0,0.00017403,2]
[351146350,1738352832102,-224.94,0.00017403,2]
[351146351,1738352832123,-267.58,0.00017403,2]
[351146352,1738352832145,-161.9,0.00017403,2]
[351146353,1738352832166,-500.0,0.00017403,2]
[351146354,1738352832187,-500.0,0.00017403,2]
[351146355,1738352832208,-500.0,0.00017403,2]
[351146356,1738352832230,-778.55,0.00017404,2]
[351146357,1738352832251,-500.0,0.00017404,2]